bitfinex-derivatives/quotes_SOLF0:USTF0_20250206
["timestamp","ask_amount","ask_price","bid_price","bid_amount"]
[1738801571249,29.41679695,198.36,198.34,0.03193229]
[1738801571954,8.79355688,198.36,198.34,0.03193229]
[1738801572153,5.0413,198.35,198.34,0.03193229]
[1738801579473,3.01393411,198.37,198.34,0.03193229]
[1738801579764,0.03433411,198.37,198.34,0.03193229]
[1738801580465,0.03433411,198.37,198.36,5.041]
[1738801581264,20.65757418,198.37,198.36,5.041]
[1738801583370,0.03433411,198.37,198.36,5.041]
[1738801584671,0.03433411,198.37,198.34,5.07323229]
[1738801584968,0.03433411,198.37,198.34,0.03193229]
[1738801585765,0.03433411,198.37,198.35,5.0412]
[1738801589769,0.03433411,198.37,198.36,5.041]
[1738801593174,3.411e-05,198.37,198.36,5.041]
[1738801594771,3.411e-05,198.37,198.36,13.81991858]
[1738801595367,20.62324007,198.46,198.36,8.77891858]
[1738801595569,20.62324007,198.46,198.43,5.039]
[1738801596575,20.65676857,198.46,198.43,5.07329969]
[1738801597078,0.0335285,198.46,198.43,5.07329969]
[1738801597476,5.039,198.44,198.43,0.03429969]
[1738801597676,13.81791858,198.44,198.43,0.03429969]
[1738801597877,8.77891858,198.44,198.35,8.77891858]
[1738801598178,8.77891858,198.42,198.35,8.77891858]
[1738801598877,0.03210749,198.4,198.38,5.0405]
[1738801599871,0.03210749,198.4,198.39,5.0403]
[1738801601573,7.49e-06,198.4,198.39,5.0403]
[1738801605482,7.49e-06,198.4,198.38,5.0405]
[1738801606183,7.49e-06,198.4,198.37,0.03190699]
[1738801606383,7.49e-06,198.4,198.39,5.0403]
[1738801613987,7.49e-06,198.4,198.38,5.0405]
[1738801614188,7.49e-06,198.4,198.37,0.03190699]
[1738801614785,5.04010749,198.4,198.37,0.03190699]
[1738801616294,5.0405,198.38,198.33,5.0418]
[1738801616486,16.88186941,198.39,198.23,13.71566941]
[1738801616690,13.71566941,198.36,198.23,13.71566941]
[1738801617090,5.0415,198.35,198.28,5.0429]
[1738801617587,0.03796564,198.33,198.3,5.07855678]
[1738801617786,0.03796564,198.33,198.3,0.03605678]
[1738801618592,0.03796564,198.33,198.31,5.0423]
[1738801618791,0.03796564,198.33,198.3,0.03605678]
[1738801619892,0.03796564,198.33,198.32,5.0421]
[1738801621194,0.03796564,198.33,198.3,5.07835678]
[1738801621795,0.03796564,198.33,198.31,5.0423]
[1738801623893,0.03796564,198.33,198.32,5.0421]
[1738801626600,0.03796564,198.33,198.32,13.82429154]
[1738801629104,1.5877,198.39,198.38,5.0405]
[1738801630900,1.5877,198.39,198.28,13.72019285]
[1738801631501,1.5877,198.39,198.35,5.0412]
[1738801632097,1.61948036,198.39,198.35,0.03817956]
[1738801632398,15.33967321,198.39,198.28,13.72019285]
[1738801632703,15.33967321,198.39,198.25,13.72019285]
[1738801632898,15.30789285,198.39,198.25,13.72019285]
[1738801633294,5.0413,198.36,198.25,13.72019285]
[1738801633494,0.03696279,198.34,198.3,0.03619557]
[1738801634505,5.0426,198.3,198.25,5.0436]
[1738801635801,0.03337247,198.29,198.26,0.03381785]
[1738801641905,5.07627247,198.29,198.26,0.03381785]
[1738801643001,13.72019285,198.27,198.1,13.72019285]
[1738801643198,13.72019285,198.24,198.1,15.39969285]
[1738801643598,5.0446,198.23,198.18,5.0456]
[1738801644006,0.03743189,198.22,198.19,0.03188007]
[1738801645007,5.08213189,198.22,198.19,0.03188007]
[1738801647105,0.03743189,198.22,198.19,0.03188007]
[1738801647307,0.03743189,198.22,198.19,5.07728007]
[1738801648305,5.08213189,198.22,198.19,0.03188007]
[1738801648608,0.03743189,198.22,198.19,0.03188007]
[1738801649404,0.03743189,198.22,198.21,5.0449]
[1738801652511,3.189e-05,198.22,198.21,5.0449]
[1738801654009,1.5175,198.33,198.3,5.0423]
[1738801654207,70.27379972,198.36,198.3,5.0423]
[1738801654508,25.66474007,198.35,198.3,5.0423]
[1738801655111,70.27379972,198.36,198.31,0.03856563]
[1738801655112,0.0363339,198.34,198.31,0.03856563]
[1738801655611,20.62324007,198.39,198.31,0.03538397]
[1738801655813,0.03319997,198.34,198.31,0.03538397]
[1738801656217,0.03319997,198.34,198.33,5.0418]
[1738801657525,9.997e-05,198.34,198.33,5.0418]
[1738801658222,13.72019285,198.48,198.4,5.0399]
[1738801658625,5.0388,198.45,198.4,5.0399]
[1738801658919,13.72019285,198.45,198.38,5.0405]
[1738801659123,13.72019285,198.45,198.32,16.94049285]
[1738801659324,0.03179304,198.43,198.4,0.03488976]
[1738801662423,0.03179304,198.43,198.4,5.07488976]
[1738801662928,0.03179304,198.43,198.4,0.03488976]
[1738801664522,5.0398,198.42,198.4,0.03488976]
[1738801665530,5.07109304,198.43,198.4,0.03488976]
[1738801666429,0.03179304,198.43,198.4,0.03488976]
[1738801667730,0.03179304,198.43,198.4,5.07488976]
[1738801667936,0.03179304,198.43,198.4,0.03488976]
[1738801668234,5.07109304,198.43,198.4,0.03488976]
[1738801670734,0.03179304,198.43,198.4,0.03488976]
[1738801670935,5.0396,198.42,198.4,0.03488976]
[1738801671531,5.0398,198.41,198.4,0.03488976]
[1738801672228,0.03179304,198.43,198.21,10.0896]
[1738801672229,13.75198589,198.43,198.29,13.72019285]
[1738801672432,15.18479285,198.4,198.26,13.72019285]
[1738801673336,0.03272966,198.35,198.31,0.03772081]
[1738801674336,5.07402966,198.35,198.31,5.07992081]
[1738801675339,0.03272966,198.35,198.31,5.07992081]
[1738801675637,0.03272966,198.35,198.31,0.03772081]
[1738801676138,0.03272966,198.35,198.32,13.72019285]
[1738801677738,0.03272966,198.35,198.34,5.0415]
[1738801679833,0.03272966,198.35,198.33,5.0418]
[1738801680040,0.03272966,198.35,198.31,0.03772081]
[1738801680634,0.03272966,198.35,198.31,5.07982081]
[1738801681238,0.03272966,198.35,198.32,5.042]
[1738801681439,0.03272966,198.35,198.31,0.03772081]
[1738801682341,0.03272966,198.35,198.34,5.0415]
[1738801682942,2.966e-05,198.35,198.34,5.0415]
[1738801683836,2.966e-05,198.35,198.32,5.0418]
[1738801684740,2.966e-05,198.35,198.33,5.0418]
[1738801686643,2.966e-05,198.35,198.32,5.0421]
[1738801686848,2.966e-05,198.35,198.31,0.03772081]
[1738801689448,2.966e-05,198.35,198.31,5.08002081]
[1738801689646,2.966e-05,198.35,198.31,0.03772081]
[1738801690041,2.966e-05,198.35,198.33,5.0418]
[1738801690244,2.966e-05,198.35,198.31,0.03772081]
[1738801691751,5.04132966,198.35,198.31,0.03772081]
[1738801692252,2.966e-05,198.35,198.31,0.03772081]
[1738801693452,5.0416,198.34,198.31,0.03772081]
[1738801696955,5.0421,198.32,198.31,0.03772081]
[1738801697155,2.966e-05,198.35,198.13,19.56977378]
[1738801697156,13.72019285,198.33,198.19,13.72019285]
[1738801697551,5.0426,198.3,198.19,13.72019285]
[1738801697955,5.0426,198.3,198.24,5.0439]
[1738801698257,0.03845786,198.29,198.25,0.03840397]
[1738801698653,0.03845786,198.29,198.25,5.08210397]
[1738801698853,0.03845786,198.29,198.25,0.03840397]
[1738801699151,0.03845786,198.29,198.26,5.0436]
[1738801701549,0.03845786,198.29,198.28,5.0431]
[1738801702553,5.786e-05,198.29,198.28,5.0431]
[1738801702758,20.62324007,198.36,198.28,13.72019285]
[1738801703261,6.6084,198.37,198.28,13.72019285]
[1738801703455,1.5675,198.37,198.28,13.72019285]
[1738801703959,0.03422315,198.34,198.32,5.042]
[1738801704351,0.03422315,198.34,198.31,0.03544611]
[1738801705058,5.07582315,198.34,198.31,0.03544611]
[1738801705761,0.03422315,198.34,198.22,13.72019285]
[1738801706063,13.72019285,198.36,198.22,13.72019285]
[1738801706251,5.0424,198.31,198.25,5.0436]
[1738801706456,5.0424,198.31,198.22,13.72019285]
[1738801706955,0.03185263,198.28,198.25,0.03538744]
[1738801707161,5.042,198.33,198.26,5.0433]
[1738801707455,13.72019285,198.36,198.22,13.72019285]
[1738801707456,0.03407101,198.28,198.22,13.72019285]
[1738801707957,0.03407101,198.28,198.23,0.03403289]
[1738801708355,0.03407101,198.28,198.27,5.0433]
[1738801708555,0.03407101,198.28,198.23,0.03403289]
[1738801709061,0.03407101,198.28,198.25,5.0437]
[1738801709560,0.03407101,198.28,198.23,0.03403289]
[1738801710160,13.72019285,198.27,198.23,0.03403289]
[1738801710562,15.25299285,198.27,198.23,0.03403289]
[1738801710964,5.0445,198.23,198.18,5.0454]
[1738801711163,1.4788,198.26,198.13,13.72019285]
[1738801711662,13.72019285,198.24,198.1,15.30109285]
[1738801712157,0.03199471,198.21,198.17,0.03737896]
[1738801713055,5.07709471,198.21,198.17,0.03737896]
[1738801713258,0.03199471,198.21,198.17,0.03737896]
[1738801713561,5.046,198.17,198.1,5.0474]
[1738801713762,13.72019285,198.15,198.03,13.72019285]
[1738801714467,18.76679285,198.15,198.08,5.0481]
[1738801715062,0.03418621,198.13,198.1,0.03289435]
[1738801717067,13.72019285,198.12,197.97,13.72019285]
[1738801717264,5.048,198.09,197.97,13.72019285]
[1738801717566,13.72019285,198.09,197.94,13.72019285]
[1738801717968,5.4666,198.11,197.97,13.72019285]
[1738801718367,0.03535009,198.06,198.03,5.0494]
[1738801719665,0.03535009,198.06,198.04,5.0491]
[1738801720570,5.009e-05,198.06,198.04,5.0491]
[1738801720974,1.5911,198.18,198.11,5.0472]
[1738801721271,1.5911,198.18,198.07,13.72019285]
[1738801721569,15.31129285,198.18,198.07,18.76839285]
[1738801721770,15.31129285,198.18,198.07,13.72019285]
[1738801722171,0.03669594,198.14,198.11,0.03423641]
[1738801723571,0.03669594,198.14,198.12,5.0471]
[1738801723773,9.594e-05,198.14,198.12,5.0471]
[1738801726073,9.594e-05,198.14,198.11,0.03423641]
[1738801729582,18.76729285,198.12,198.11,0.03423641]
[1738801729780,13.72019285,198.12,198.03,5.0493]
[1738801730180,13.72019285,198.12,197.98,16.79449285]
[1738801730383,13.72019285,198.12,197.98,13.72019285]
[1738801730977,0.03468234,198.07,198.03,5.08749562]
[1738801734882,0.03468234,198.07,198.04,5.0492]
[1738801735288,0.03468234,198.07,198.03,0.03829562]
[1738801735784,5.0489,198.05,198.03,0.03829562]
[1738801736886,5.0492,198.04,198.03,0.03829562]
[1738801738482,5.0489,198.06,198.03,0.03829562]
[1738801738682,0.03468234,198.07,198.03,0.03829562]
[1738801739180,5.08338234,198.07,198.03,0.03829562]
[1738801742686,0.03468234,198.07,198.04,5.0492]
[1738801742890,0.03468234,198.07,198.03,0.03829562]
[1738801743393,0.03468234,198.07,198.06,5.0487]
[1738801744992,0.03468234,198.07,198.04,5.049]
[1738801745192,0.03468234,198.07,198.03,0.03829562]
[1738801746087,13.75487519,198.07,198.03,0.03829562]
[1738801746891,5.0488,198.06,198.03,0.03829562]
[1738801747292,13.75487519,198.07,198.03,0.03829562]
[1738801747991,5.0492,198.04,198.03,0.03829562]
[1738801748193,13.72019285,198.04,197.98,5.0505]
[1738801748391,13.72019285,198.04,197.93,3.0743]
[1738801748591,1.4914,198.06,197.93,3.0743]
[1738801748784,13.72019285,198.1,197.93,3.0743]
[1738801748985,18.76789285,198.1,197.97,13.72019285]
[1738801749384,18.76789285,198.1,198.02,0.03252414]
[1738801749385,0.03630917,198.05,198.02,0.03252414]
[1738801749592,0.03630917,198.05,198.04,5.0492]
[1738801751397,0.03630917,198.05,198.02,0.03252414]
[1738801752894,0.03630917,198.05,198.04,5.0492]
[1738801754400,9.17e-06,198.05,198.04,5.0492]
[1738801759204,9.17e-06,198.05,198.04,18.76939285]
[1738801759901,20.62324007,198.17,198.14,5.0465]
[1738801760297,20.62324007,198.17,198.07,13.72019285]
[1738801761000,6.6633,198.19,198.07,13.72019285]
[1738801761191,0.03282475,198.14,198.1,0.03591568]
[1738801762602,0.03282475,198.14,198.13,5.0469]
[1738801763299,2.475e-05,198.14,198.13,5.0469]
[1738801764505,2.475e-05,198.14,198.13,18.76709285]
[1738801766700,1.5775,198.24,198.13,13.72019285]
[1738801766901,1.4637,198.28,198.16,13.72019285]
[1738801767102,20.62324007,198.3,198.19,13.72019285]
[1738801767302,20.62324007,198.3,198.26,5.0436]
[1738801767901,20.62324007,198.3,198.26,5.08142097]
[1738801768099,20.65527338,198.3,198.26,0.03782097]
[1738801768293,20.65527338,198.3,198.29,5.0428]
[1738801769205,0.03203331,198.3,198.29,5.0428]
[1738801770101,0.03203331,198.3,198.27,5.0431]
[1738801770500,0.03203331,198.3,198.26,0.03782097]
[1738801771507,5.07463331,198.3,198.26,0.03782097]
[1738801773508,0.03203331,198.3,198.26,5.08132097]
[1738801774102,0.03203331,198.3,198.27,5.0432]
[1738801774810,0.03203331,198.3,198.26,0.03782097]
[1738801775209,1.58663331,198.3,198.26,0.03782097]
[1738801775506,5.0431,198.28,198.26,0.03782097]
[1738801775707,1.58663331,198.3,198.26,0.03782097]
[1738801776410,5.0428,198.29,198.26,0.03782097]
[1738801777412,6.62923331,198.3,198.26,0.03782097]
[1738801778412,5.0432,198.28,198.26,0.03782097]
[1738801779211,13.72019285,198.28,198.13,13.72019285]
[1738801779411,1.5115,198.27,198.13,13.72019285]
[1738801780210,5.0439,198.25,198.13,13.72019285]
[1738801780415,0.03673213,198.22,198.18,0.03787299]
[1738801781113,0.03673213,198.22,198.19,5.0454]
[1738801782112,0.03673213,198.22,198.18,0.03787299]
[1738801783811,0.03673213,198.22,198.2,5.0449]
[1738801785416,0.03673213,198.22,198.19,5.0453]
[1738801786914,0.03673213,198.22,198.18,0.03787299]
[1738801787110,0.03673213,198.22,198.2,5.045]
[1738801787614,0.03673213,198.22,198.19,5.0453]
[1738801787914,0.03673213,198.22,198.18,0.03787299]
[1738801788213,3.213e-05,198.22,198.21,5.0449]
[1738801794619,3.213e-05,198.22,198.19,5.0452]
[1738801795623,3.213e-05,198.22,198.18,0.03787299]
[1738801796127,3.213e-05,198.22,198.18,13.75806584]
[1738801797425,3.213e-05,198.22,198.21,5.0449]
[1738801803724,3.213e-05,198.22,198.18,0.03787299]
[1738801803929,3.213e-05,198.22,198.19,5.0453]
[1738801804129,3.213e-05,198.22,198.18,0.03787299]
[1738801804325,3.213e-05,198.22,198.18,5.08327299]
[1738801804534,3.213e-05,198.22,198.18,0.03787299]
[1738801805026,3.213e-05,198.22,198.19,5.0452]
[1738801806230,3.213e-05,198.22,198.21,5.0449]
[1738801807632,3.213e-05,198.22,198.19,5.0451]
[1738801807834,3.213e-05,198.22,198.18,0.03787299]
[1738801809728,5.04463213,198.22,198.18,0.03787299]
[1738801810129,3.213e-05,198.22,198.18,0.03787299]
[1738801811330,3.213e-05,198.22,198.18,50.03787299]
[1738801812232,3.213e-05,198.22,198.21,5.0449]
[1738801812436,20.62324007,198.28,198.21,13.72019285]
[1738801812630,20.62324007,198.28,198.24,13.72019285]
[1738801812930,82.49296031,198.31,198.24,13.72019285]
[1738801812931,20.62324007,198.31,198.24,13.72019285]
[1738801813534,34.34343292,198.31,198.26,0.03257421]
[1738801813833,0.03697917,198.29,198.26,0.03257421]
[1738801814634,0.03697917,198.29,198.27,5.0433]
[1738801815237,0.03697917,198.29,198.28,5.0431]
[1738801815534,0.03697917,198.29,198.26,0.03257421]
[1738801815735,0.03697917,198.29,198.26,5.07597421]
[1738801816040,0.03697917,198.29,198.26,0.03257421]
[1738801816337,0.03697917,198.29,198.28,5.0431]
[1738801817032,7.917e-05,198.29,198.28,5.0431]
[1738801817831,22.19234007,198.39,198.27,13.72019285]
[1738801818032,1.5691,198.39,198.38,5.0405]
[1738801818434,1.5691,198.39,198.31,13.72019285]
[1738801818632,1.5691,198.39,198.36,5.0408]
[1738801819139,1.60734304,198.39,198.36,0.03414077]
[1738801821740,1.60734304,198.39,198.28,13.72019285]
[1738801821939,13.72019285,198.38,198.25,13.72019285]
[1738801822440,5.0413,198.35,198.28,5.0428]
[1738801822631,13.72019285,198.35,198.22,13.72019285]
[1738801822834,0.0344136,198.33,198.3,0.03661921]
[1738801823841,0.0344136,198.33,198.27,5.0432]
[1738801824143,0.0344136,198.33,198.22,13.72019285]
[1738801825039,0.0344136,198.33,198.26,0.03230916]
[1738801825445,0.0344136,198.33,198.29,5.0428]
[1738801826141,5.0762136,198.33,198.27,5.0431]
[1738801826340,0.0344136,198.33,198.26,0.03230916]
[1738801826540,13.72019285,198.32,198.26,0.03230916]
[1738801826741,13.72019285,198.29,198.17,39.33353304]
[1738801827743,5.0439,198.25,198.19,5.0453]
[1738801827942,5.08028425,198.25,198.22,0.03278807]
[1738801828139,13.72019285,198.23,198.1,13.72019285]
[1738801828344,1.6107,198.22,198.1,13.72019285]
[1738801829044,1.6107,198.22,198.18,40.25]
[1738801829239,5.0454,198.19,198.18,40.28839536]
[1738801829543,1.6107,198.22,198.18,40.28839536]
[1738801829739,0.03230136,198.2,198.18,40.28839536]
[1738801831239,5.0454,198.19,198.18,40.28839536]
[1738801833841,0.03230136,198.2,198.18,37.85049536]
[1738801834041,22.0252845,198.2,198.18,35.58409536]
[1738801834345,22.0252845,198.2,198.03,0.8452]
[1738801834639,183.887,198.19,198.03,0.8452]
[1738801834845,21.99298314,198.16,198.03,0.8452]
[1738801835143,1.4931,198.15,198.01,1.5888]
[1738801835344,5.0471,198.13,198.06,5.0486]
[1738801835550,0.03871179,198.1,198.06,5.08450662]
[1738801836643,0.03871179,198.1,198.08,5.0481]
[1738801836843,0.03871179,198.1,198.06,0.03590662]
[1738801837848,5.0484,198.07,198.06,0.03590662]
[1738801838051,0.03871179,198.1,197.95,1.6004]
[1738801838349,1.5126,198.11,197.99,5.0505]
[1738801838647,179.987,198.1,197.99,5.0505]
[1738801839246,0.03455967,198.06,198.03,0.02241192]
[1738801839449,0.03455967,198.06,197.96,5.051]
[1738801839948,5.0494,198.03,197.97,5.0509]
[1738801840149,0.03455967,198.06,197.92,21.99298314]
[1738801840350,5.05,198.01,197.95,5.0515]
[1738801840548,21.99298314,198.08,197.95,5.0515]
[1738801840853,0.0355007,198.0,197.95,5.0515]
[1738801841149,5.0505,197.99,197.93,5.052]
[1738801841349,5.08640637,197.99,197.93,5.052]
[1738801842549,0.03590637,197.99,197.84,21.99298314]
[1738801842751,179.987,198.03,197.84,21.99298314]
[1738801842947,0.03286184,197.93,197.82,1.5284]
[1738801843452,0.03286184,197.93,197.89,5.053]
[1738801843751,0.03286184,197.93,197.85,21.99298314]
[1738801844451,0.03286184,197.93,197.82,1.5284]
[1738801845150,5.08496184,197.93,197.82,1.5284]
[1738801845553,0.03286184,197.93,197.82,1.5284]
[1738801845748,5.08496184,197.93,197.87,5.0535]
[1738801845948,0.03286184,197.93,197.82,1.5284]
[1738801846345,5.0528,197.9,197.85,5.054]
[1738801847149,5.053,197.89,197.83,5.0545]
[1738801847345,21.99298314,197.93,197.82,1.5284]
[1738801847550,0.03728393,197.88,197.81,1.5857]
[1738801847745,5.0538,197.86,197.81,1.5857]
[1738801848153,0.03728393,197.88,197.81,1.5857]
[1738801848454,5.0538,197.86,197.77,21.99298314]
[1738801848953,0.03564231,197.83,197.8,5.0551]
[1738801849152,0.03564231,197.83,197.77,21.99298314]
[1738801849357,0.03564231,197.83,197.74,25.10928314]
[1738801851655,0.03564231,197.83,197.82,5.0548]
[1738801852251,5.0522,197.93,197.86,5.0535]
[1738801852449,5.0522,197.93,197.8,21.99298314]
[1738801852652,193.77334317,197.96,197.83,13.78634317]
[1738801852854,179.987,197.96,197.86,13.78634317]
[1738801853051,3.0344,197.98,197.86,13.78634317]
[1738801853253,1.4726,197.98,197.93,5.052]
[1738801853555,0.03197673,197.94,197.93,5.052]
[1738801853757,5.051,197.98,197.91,5.0523]
[1738801853954,13.78634317,197.99,197.87,3.1132]
[1738801854157,0.03351164,197.95,197.92,0.03629141]
[1738801854358,13.78634317,198.02,197.92,0.03629141]
[1738801854658,25.14478941,198.04,197.87,25.15838941]
[1738801854851,5.0502,198.0,197.94,5.0516]
[1738801855251,5.0502,198.0,197.87,25.15838941]
[1738801855452,5.0502,198.0,197.9,5.0525]
[1738801855648,0.03242904,197.95,197.92,0.03776547]
[1738801855960,5.0505,197.99,197.87,25.15838941]
[1738801856154,0.03363858,197.95,197.92,0.03184411]
[1738801858149,179.987,197.94,197.92,4.411e-05]
[1738801858456,202.03218941,197.93,197.72,1.4932]
[1738801858660,22.04518941,197.89,197.72,1.4932]
[1738801858857,5.0533,197.88,197.81,5.0549]
[1738801859454,0.03692099,197.86,197.83,0.03336533]
[1738801860460,22.04518941,197.97,197.89,5.053]
[1738801860659,22.04518941,197.97,197.83,0.03336533]
[1738801860860,202.03218941,197.97,197.78,22.04518941]
[1738801861161,5.0528,197.9,197.82,5.0546]
[1738801861351,22.04518941,197.93,197.74,22.04518941]
[1738801861555,0.03737759,197.88,197.84,0.03504262]
[1738801861756,5.0535,197.87,197.84,0.03504262]
[1738801862351,5.0538,197.86,197.84,0.03504262]
[1738801862557,0.03737759,197.88,197.84,0.03504262]
[1738801862957,22.04518941,197.85,197.73,1.5255]
[1738801863558,5.0557,197.79,197.73,6.5824]
[1738801863759,1.5902,197.84,197.73,1.5255]
[1738801864158,0.03627782,197.8,197.77,0.03202398]
[1738801865463,0.03627782,197.8,197.78,5.0558]
[1738801865668,0.03627782,197.8,197.77,0.03202398]
[1738801866360,0.03627782,197.8,197.79,5.0556]
[1738801867561,27.09818941,197.89,197.77,0.03202398]
[1738801867870,27.09818941,197.89,197.74,22.04518941]
[1738801868066,5.0536,197.87,197.74,22.04518941]
[1738801868664,0.0342513,197.82,197.79,0.03818804]
[1738801868963,27.09838941,197.89,197.79,0.03818804]
[1738801869562,22.04518941,197.93,197.79,0.03818804]
[1738801869865,24.52324007,197.94,197.79,1.4673]
[1738801870065,0.03682835,197.88,197.84,0.0384538]
[1738801871062,2.835e-05,197.88,197.84,0.0384538]
[1738801871268,12.72114007,197.94,197.86,22.04518941]
[1738801871567,47.17310687,197.97,197.86,22.04518941]
[1738801871965,39.51040687,197.97,197.96,5.0512]
[1738801872273,0.03333081,197.98,197.95,0.03774025]
[1738801872465,24.84343691,198.0,197.98,5.0507]
[1738801873159,3.691e-05,198.0,197.98,5.0507]
[1738801873361,229.41455094,198.02,198.01,5.0499]
[1738801873668,221.00435094,198.02,198.01,27.09508941]
[1738801874268,0.03811201,198.03,198.01,27.09508941]
[1738801875770,0.03811201,198.03,198.02,50.53931492]
[1738801877964,0.03811201,198.03,198.02,4.59448317]
[1738801878165,1.6677,198.15,198.02,4.59448317]
[1738801879372,0.03672572,198.1,198.07,0.03697157]
[1738801880471,5.08442572,198.1,198.07,0.03697157]
[1738801881372,5.049,198.05,197.97,6.82804943]
[1738801881570,1.5368,198.09,197.97,6.82804943]
[1738801881770,1.5368,198.09,197.99,5.0504]
[1738801882371,1.5368,198.09,197.97,6.82804943]
[1738801882571,0.0358448,198.06,198.02,0.0359408]
[1738801883173,0.0358448,198.06,198.03,5.0494]
[1738801883372,0.0358448,198.06,198.02,0.0359408]
[1738801883872,0.0358448,198.06,198.02,5.0856408]
[1738801884073,0.0358448,198.06,198.02,0.0359408]
[1738801884484,0.0358448,198.06,198.04,5.0491]
[1738801885575,0.0358448,198.06,198.02,0.0359408]
[1738801886275,0.0358448,198.06,198.03,5.0494]
[1738801887373,0.0358448,198.06,198.02,0.0359408]
[1738801889177,5.0846448,198.06,198.02,0.0359408]
[1738801889686,22.08103421,198.06,197.89,22.04518941]
[1738801889981,1.5017,198.05,197.89,22.04518941]
[1738801890178,22.04518941,198.02,197.88,39.38431051]
[1738801890377,22.04518941,198.02,197.87,11.88134943]
[1738801890575,22.04518941,198.02,197.87,6.82804943]
[1738801890780,0.03789132,197.96,197.93,0.03361469]
[1738801890978,0.03789132,197.96,197.87,6.82804943]
[1738801891474,22.04518941,197.94,197.87,6.82804943]
[1738801891780,5.0531,197.89,197.87,6.82804943]
[1738801892480,0.03723784,197.9,197.87,6.82804943]
[1738801893386,0.03723784,197.9,197.86,0.03397896]
[1738801893581,5.09003784,197.9,197.86,0.03397896]
[1738801894578,5.0531,197.89,197.86,0.03397896]
[1738801894786,6.5775,197.89,197.86,0.03397896]
[1738801896179,1.5244,197.89,197.74,22.04518941]
[1738801896677,5.0538,197.86,197.8,5.0553]
[1738801897278,5.09256361,197.85,197.81,0.03383913]
[1738801897786,0.03846361,197.85,197.81,0.03383913]
[1738801899478,5.09276361,197.85,197.81,0.03383913]
[1738801901889,5.0551,197.81,197.76,5.0561]
[1738801902090,5.0551,197.81,197.7,22.04518941]
[1738801902385,6.601,197.84,197.78,5.0558]
[1738801902989,0.03848407,197.83,197.79,0.03591051]
[1738801903189,5.09308407,197.83,197.79,0.03591051]
[1738801904288,5.0551,197.81,197.79,0.03591051]
[1738801904492,0.03848407,197.83,197.7,22.04518941]
[1738801904692,1.5467,197.84,197.66,28.87323884]
[1738801904892,5.0556,197.79,197.73,5.0568]
[1738801905394,1.5467,197.84,197.66,22.04518941]
[1738801905589,0.03887286,197.78,197.66,22.04518941]
[1738801905897,5.0559,197.78,197.72,5.0571]
[1738801906088,0.03274582,197.74,197.72,5.0571]
[1738801906791,0.03274582,197.74,197.73,5.0571]
[1738801908892,0.03274582,197.74,197.66,22.04518941]
[1738801911091,0.03274582,197.74,197.73,5.0571]
[1738801919903,0.03274582,197.74,197.71,5.0574]
[1738801920302,0.03274582,197.74,197.67,13.80350782]
[1738801921803,0.03274582,197.74,197.71,5.0575]
[1738801922197,5.0564,197.76,197.71,5.0575]
[1738801922399,1.4671,197.8,197.67,13.80350782]
[1738801922602,1.4671,197.8,197.7,13.80350782]
[1738801922803,1.5387,197.83,197.76,13.80350782]
[1738801923205,1.5387,197.83,197.78,0.03569333]
[1738801923406,1.5387,197.83,197.73,13.80350782]
[1738801923701,0.03769559,197.82,197.79,0.03207676]
[1738801923908,5.0553,197.8,197.79,0.03207676]
[1738801924103,0.03769559,197.82,197.7,13.80350782]
[1738801924406,1.5387,197.83,197.7,13.80350782]
[1738801925003,5.0558,197.79,197.73,5.0571]
[1738801925409,0.0377061,197.78,197.7,13.80350782]
[1738801925611,0.0377061,197.78,197.67,13.80350782]
[1738801925907,13.80350782,197.78,197.64,13.80350782]
[1738801926110,0.03452125,197.74,197.64,13.80350782]
[1738801926711,0.03452125,197.74,197.7,27.31219774]
[1738801927105,5.09142125,197.74,197.7,27.31219774]
[1738801927305,0.03452125,197.74,197.7,27.31219774]
[1738801927509,0.03452125,197.74,197.7,41.11570556]
[1738801927813,0.03452125,197.74,197.73,5.0571]
[1738801928809,0.03452125,197.74,197.71,5.0576]
[1738801929410,0.03452125,197.74,197.71,11.88564943]
[1738801929711,0.03452125,197.74,197.71,6.82804943]
[1738801930010,5.09142125,197.74,197.71,6.82804943]
[1738801930212,0.03452125,197.74,197.71,6.82804943]
[1738801931506,5.0571,197.73,197.71,6.82804943]
[1738801932012,0.03452125,197.74,197.71,6.82804943]
[1738801933712,0.03452125,197.74,197.66,24.87129774]
[1738801933713,5.0583,197.69,197.66,24.87129774]
[1738801933906,13.80350782,197.72,197.66,24.87129774]
[1738801934112,0.03594114,197.69,197.66,12.66529774]
[1738801934310,5.0586,197.67,197.66,12.66529774]
[1738801935615,0.03594114,197.69,197.66,12.66529774]
[1738801937115,5.0586,197.67,197.66,12.66529774]
[1738801937311,0.03594114,197.69,197.58,68.42790333]
[1738801937515,13.80350782,197.72,197.58,68.42790333]